[Event "*** SCC Grand Prix: Titled Tuesday Blitz"]
[Site "Chess.com"]
[Date "2020.10.13"]
[Round "1"]
[White "fabianvivasz"]
[Black "cassoulet"]
[Result "0-1"]
[WhiteElo "2367"]
[BlackElo "2712"]
[TimeControl "180+1"]
[EndTime "10:04:26 PDT"]
[Termination "cassoulet won by resignation"]

1. e4 {[%clk 0:02:54.7]} 1... e6 {[%clk 0:03:00]} 2. d4 {[%clk 0:02:53.7]} 2...
d5 {[%clk 0:03:00.9]} 3. Nd2 {[%clk 0:02:52.1]} 3... c5 {[%clk 0:03:00.2]} 4.
Ngf3 {[%clk 0:02:51.2]} 4... cxd4 {[%clk 0:03:00]} 5. Nxd4 {[%clk 0:02:50.9]}
5... Nc6 {[%clk 0:02:59.4]} 6. Bb5 {[%clk 0:02:49.3]} 6... Bd7 {[%clk
0:02:59.6]} 7. Bxc6 {[%clk 0:02:48.4]} 7... bxc6 {[%clk 0:03:00.5]} 8. O-O
{[%clk 0:02:47.7]} 8... Bd6 {[%clk 0:02:59.1]} 9. Re1 {[%clk 0:02:40.4]} 9... e5
{[%clk 0:02:56.2]} 10. exd5 {[%clk 0:02:36.4]} 10... cxd5 {[%clk 0:02:57.1]} 11.
N4f3 {[%clk 0:02:32.5]} 11... f6 {[%clk 0:02:47.4]} 12. Nc4 {[%clk 0:02:20.8]}
12... Be6 {[%clk 0:02:47.4]} 13. Nxd6+ {[%clk 0:02:08.7]} 13... Qxd6 {[%clk
0:02:48.3]} 14. Bf4 {[%clk 0:01:45.6]} 14... Ne7 {[%clk 0:02:36.4]} 15. Nxe5
{[%clk 0:01:21.7]} 15... fxe5 {[%clk 0:02:36.1]} 16. Bxe5 {[%clk 0:01:21.8]}
16... Qd7 {[%clk 0:02:30.1]} 17. Bxg7 {[%clk 0:01:18.4]} 17... Rg8 {[%clk
0:02:30.1]} 18. Qh5+ {[%clk 0:01:16.9]} 18... Bf7 {[%clk 0:02:27.6]} 19. Qh4
{[%clk 0:00:54.3]} 19... Rxg7 {[%clk 0:02:24.2]} 20. Re5 {[%clk 0:00:41.1]}
20... Kf8 {[%clk 0:02:21.8]} 21. Rae1 {[%clk 0:00:37.7]} 21... Ng6 {[%clk
0:02:18.3]} 22. Qb4+ {[%clk 0:00:37.9]} 22... Kg8 {[%clk 0:02:18.9]} 23. R5e3
{[%clk 0:00:32.4]} 23... d4 {[%clk 0:02:18]} 24. Rg3 {[%clk 0:00:29]} 24... Re8
{[%clk 0:02:16.1]} 0-1

[Event "*** SCC Grand Prix: Titled Tuesday Blitz"]
[Site "Chess.com"]
[Date "2020.10.13"]
[Round "1"]
[White "1977Ivan"]
[Black "KatarinaOstojic"]
[Result "1-0"]
[WhiteElo "2672"]
[BlackElo "2334"]
[TimeControl "180+1"]
[EndTime "10:04:29 PDT"]
[Termination "1977Ivan won by resignation"]

1. c4 {[%clk 0:03:00.9]} 1... f5 {[%clk 0:02:59.2]} 2. d4 {[%clk 0:02:59.6]}
2... d6 {[%clk 0:02:58.2]} 3. Nc3 {[%clk 0:02:58.5]} 3... Nf6 {[%clk 0:02:58.7]}
4. Bg5 {[%clk 0:02:57.4]} 4... Nbd7 {[%clk 0:02:58.1]} 5. Qc2 {[%clk 0:02:57]}
5... g6 {[%clk 0:02:57]} 6. Nh3 {[%clk 0:02:54.7]} 6... Bg7 {[%clk 0:02:57.2]}
7. O-O-O {[%clk 0:02:50.9]} 7... O-O {[%clk 0:02:56.5]} 8. Nf4 {[%clk
0:02:47.1]} 8... Nb8 {[%clk 0:02:29.8]} 9. h4 {[%clk 0:02:43.9]} 9... Ng4 {[%clk
0:02:26.6]} 10. e3 {[%clk 0:02:33.2]} 10... Nc6 {[%clk 0:02:26.3]} 11. c5 {[%clk
0:02:25.2]} 11... Qe8 {[%clk 0:02:19.2]} 12. Bc4+ {[%clk 0:02:23.1]} 12... Kh8
{[%clk 0:02:18.8]} 13. h5 {[%clk 0:02:21.4]} 13... gxh5 {[%clk 0:02:08.9]} 14.
Rxh5 {[%clk 0:02:11.6]} 14... e5 {[%clk 0:02:08.2]} 15. Rdh1 {[%clk 0:02:10.7]}
15... h6 {[%clk 0:02:03]} 16. Bxh6 {[%clk 0:01:43.8]} 16... Nxh6 {[%clk
0:01:54.4]} 17. Rxh6+ {[%clk 0:01:44.7]} 17... Bxh6 {[%clk 0:01:55.3]} 18. Rxh6+
{[%clk 0:01:44.1]} 18... Kg7 {[%clk 0:01:55.9]} 19. Rg6+ {[%clk 0:01:43.8]}
19... Kh7 {[%clk 0:01:56.4]} 20. Qd1 {[%clk 0:01:37.5]} 20... Qxg6 {[%clk
0:01:54]} 21. Nxg6 {[%clk 0:01:37.3]} 21... Kxg6 {[%clk 0:01:54.9]} 22. cxd6
{[%clk 0:01:35.8]} 22... cxd6 {[%clk 0:01:54.6]} 23. dxe5 {[%clk 0:01:35.3]}
23... dxe5 {[%clk 0:01:54]} 24. Qd6+ {[%clk 0:01:26.6]} 24... Rf6 {[%clk
0:01:54.1]} 25. Qc7 {[%clk 0:01:25.8]} 25... e4 {[%clk 0:01:50.9]} 26. Nd5
{[%clk 0:01:24.4]} 26... Rf8 {[%clk 0:01:45.9]} 27. Qg3+ {[%clk 0:01:19.8]}
27... Kh7 {[%clk 0:01:43.4]} 28. Qh4+ {[%clk 0:01:19.2]} 28... Kg7 {[%clk
0:01:42.7]} 29. Qg5+ {[%clk 0:01:19.1]} 29... Kh8 {[%clk 0:01:39.7]} 30. Qh6+
{[%clk 0:01:16.7]} 1-0

[Event "*** SCC Grand Prix: Titled Tuesday Blitz"]
[Site "Chess.com"]
[Date "2020.10.13"]
[Round "1"]
[White "szachuspl"]
[Black "BikingBrian"]
[Result "1-0"]
[WhiteElo "2558"]
[BlackElo "2205"]
[TimeControl "180+1"]
[EndTime "10:04:38 PDT"]
[Termination "szachuspl won by checkmate"]

1. d4 {[%clk 0:03:00.1]} 1... Nf6 {[%clk 0:02:59.5]} 2. c4 {[%clk 0:03:00]} 2...
g6 {[%clk 0:02:59.6]} 3. Nc3 {[%clk 0:02:59.9]} 3... Bg7 {[%clk 0:03:00.5]} 4.
e4 {[%clk 0:02:59.9]} 4... d6 {[%clk 0:03:01]} 5. Nf3 {[%clk 0:03:00.5]} 5...
O-O {[%clk 0:03:01.1]} 6. Be2 {[%clk 0:03:01.1]} 6... Na6 {[%clk 0:03:01.4]} 7.
Be3 {[%clk 0:02:57.2]} 7... e5 {[%clk 0:03:00.1]} 8. d5 {[%clk 0:02:57.4]} 8...
Nc5 {[%clk 0:03:00]} 9. Nd2 {[%clk 0:02:57.6]} 9... a5 {[%clk 0:02:57.2]} 10. a3
{[%clk 0:02:57.7]} 10... a4 {[%clk 0:02:54.6]} 11. Bxc5 {[%clk 0:02:55.7]} 11...
dxc5 {[%clk 0:02:55.5]} 12. Nxa4 {[%clk 0:02:55.2]} 12... b6 {[%clk 0:02:53.3]}
13. Nc3 {[%clk 0:02:55]} 13... Ne8 {[%clk 0:02:49.8]} 14. Qc2 {[%clk 0:02:53.2]}
14... f5 {[%clk 0:02:49.4]} 15. O-O-O {[%clk 0:02:52.3]} 15... Nd6 {[%clk
0:02:43.9]} 16. Kb1 {[%clk 0:02:41]} 16... Bd7 {[%clk 0:02:37.5]} 17. f3 {[%clk
0:02:40.4]} 17... Bh6 {[%clk 0:02:35.9]} 18. Bd3 {[%clk 0:02:39.6]} 18... Bxd2
{[%clk 0:02:09.6]} 19. Qxd2 {[%clk 0:02:35.6]} 19... f4 {[%clk 0:02:10.5]} 20.
Qe2 {[%clk 0:02:28]} 20... g5 {[%clk 0:01:52.4]} 21. Qc2 {[%clk 0:02:22.4]}
21... Qe8 {[%clk 0:01:46.6]} 22. Rc1 {[%clk 0:02:19.8]} 22... Kh8 {[%clk
0:01:38.6]} 23. Ka2 {[%clk 0:02:19.7]} 23... Rg8 {[%clk 0:01:38.5]} 24. g4
{[%clk 0:02:17.7]} 24... Kg7 {[%clk 0:01:36.1]} 25. h4 {[%clk 0:02:15.9]} 25...
h6 {[%clk 0:01:36.2]} 26. hxg5 {[%clk 0:02:14.7]} 26... hxg5 {[%clk 0:01:37.1]}
27. Rh5 {[%clk 0:02:14.8]} 27... Qe7 {[%clk 0:01:27.3]} 28. Rch1 {[%clk
0:02:14.2]} 28... Rh8 {[%clk 0:01:27.6]} 29. Qh2 {[%clk 0:02:11.8]} 29... Nf7
{[%clk 0:01:22.9]} 30. Rh7+ {[%clk 0:02:03.1]} 30... Rxh7 {[%clk 0:01:11.9]} 31.
Qxh7+ {[%clk 0:02:02.5]} 31... Kf6 {[%clk 0:01:05.7]} 32. d6 {[%clk 0:01:57.4]}
32... Qxd6 {[%clk 0:00:53.1]} 33. Nd5+ {[%clk 0:01:57.4]} 33... Ke6 {[%clk
0:00:53.5]} 34. Qf5# {[%clk 0:01:49]} 1-0

[Event "*** SCC Grand Prix: Titled Tuesday Blitz"]
[Site "Chess.com"]
[Date "2020.10.13"]
[Round "1"]
[White "Kaslask"]
[Black "BursaBBSatranc"]
[Result "0-1"]
[WhiteElo "2273"]
[BlackElo "2603"]
[TimeControl "180+1"]
[EndTime "10:04:40 PDT"]
[Termination "BursaBBSatranc won by resignation"]

1. c4 {[%clk 0:03:00.9]} 1... c6 {[%clk 0:02:59.8]} 2. d4 {[%clk 0:02:59.7]}
2... d5 {[%clk 0:03:00.7]} 3. Nc3 {[%clk 0:02:59.7]} 3... Nf6 {[%clk 0:03:01.5]}
4. e3 {[%clk 0:02:58.4]} 4... a6 {[%clk 0:03:02.4]} 5. Qc2 {[%clk 0:02:53.6]}
5... b5 {[%clk 0:03:01.6]} 6. b3 {[%clk 0:02:53.5]} 6... g6 {[%clk 0:02:56.4]}
7. Bb2 {[%clk 0:02:49.9]} 7... Bf5 {[%clk 0:02:55.4]} 8. Bd3 {[%clk 0:02:48.1]}
8... Bxd3 {[%clk 0:02:55.7]} 9. Qxd3 {[%clk 0:02:47.9]} 9... Bg7 {[%clk
0:02:56.6]} 10. Nf3 {[%clk 0:02:47.3]} 10... Nbd7 {[%clk 0:02:55.5]} 11. O-O
{[%clk 0:02:46]} 11... O-O {[%clk 0:02:55.3]} 12. Ne5 {[%clk 0:02:45.7]} 12...
Rc8 {[%clk 0:02:54.5]} 13. f4 {[%clk 0:02:43.7]} 13... e6 {[%clk 0:02:48.1]} 14.
c5 {[%clk 0:02:42.7]} 14... a5 {[%clk 0:02:38]} 15. Ne2 {[%clk 0:02:39.7]} 15...
Ne4 {[%clk 0:02:33.4]} 16. Nc3 {[%clk 0:02:31.1]} 16... Ndf6 {[%clk 0:02:32.8]}
17. Nxe4 {[%clk 0:02:21.4]} 17... Nxe4 {[%clk 0:02:33.7]} 18. a3 {[%clk
0:02:10.7]} 18... Bxe5 {[%clk 0:02:28.5]} 19. dxe5 {[%clk 0:02:07.3]} 19... Nxc5
{[%clk 0:02:24.2]} 20. Qc2 {[%clk 0:02:03.2]} 20... Ne4 {[%clk 0:02:23]} 21.
Rac1 {[%clk 0:02:02.2]} 21... c5 {[%clk 0:02:21.8]} 22. Bc3 {[%clk 0:01:57.8]}
22... b4 {[%clk 0:02:10.9]} 23. Be1 {[%clk 0:01:55.3]} 23... Qb6 {[%clk
0:02:08.3]} 24. axb4 {[%clk 0:01:51.9]} 24... axb4 {[%clk 0:02:07.8]} 25. Bh4
{[%clk 0:01:43.7]} 25... c4 {[%clk 0:02:07]} 26. bxc4 {[%clk 0:01:32.1]} 26...
Qxe3+ {[%clk 0:01:58]} 27. Kh1 {[%clk 0:01:29.6]} 27... Rxc4 {[%clk 0:01:56.9]}
28. Qb1 {[%clk 0:01:24.7]} 28... Nd2 {[%clk 0:01:49]} 29. Qb2 {[%clk 0:01:09.2]}
29... Nxf1 {[%clk 0:01:44.6]} 30. Rxf1 {[%clk 0:01:09]} 30... Rxf4 {[%clk
0:01:39.6]} 0-1

[Event "*** SCC Grand Prix: Titled Tuesday Blitz"]
[Site "Chess.com"]
[Date "2020.10.13"]
[Round "1"]
[White "queen_iryna"]
[Black "Maksimus1998"]
[Result "0-1"]
[WhiteElo "2281"]
[BlackElo "2617"]
[TimeControl "180+1"]
[EndTime "10:04:43 PDT"]
[Termination "Maksimus1998 won by resignation"]

1. e4 {[%clk 0:03:00.9]} 1... c5 {[%clk 0:02:59.6]} 2. Nf3 {[%clk 0:03:00.9]}
2... a6 {[%clk 0:03:00.1]} 3. c4 {[%clk 0:02:58.6]} 3... Nc6 {[%clk 0:02:58.1]}
4. Nc3 {[%clk 0:02:57.4]} 4... Nd4 {[%clk 0:02:58.3]} 5. g3 {[%clk 0:02:46.2]}
5... g6 {[%clk 0:02:58]} 6. Bg2 {[%clk 0:02:45.6]} 6... Bg7 {[%clk 0:02:58.6]}
7. O-O {[%clk 0:02:45.5]} 7... d6 {[%clk 0:02:58.6]} 8. d3 {[%clk 0:02:43.7]}
8... e6 {[%clk 0:02:58.1]} 9. Be3 {[%clk 0:02:36.2]} 9... Ne7 {[%clk 0:02:58.1]}
10. Nd2 {[%clk 0:02:26.1]} 10... O-O {[%clk 0:02:57.1]} 11. f4 {[%clk 0:02:26]}
11... Rb8 {[%clk 0:02:56.3]} 12. Nf3 {[%clk 0:02:16.5]} 12... b5 {[%clk
0:02:55]} 13. e5 {[%clk 0:01:59]} 13... Nef5 {[%clk 0:02:34]} 14. Bxd4 {[%clk
0:01:41.5]} 14... cxd4 {[%clk 0:02:32.4]} 15. Ne4 {[%clk 0:01:41.7]} 15... Ne3
{[%clk 0:02:32.5]} 16. Qe2 {[%clk 0:01:41.8]} 16... Nxf1 {[%clk 0:02:32.6]} 17.
Rxf1 {[%clk 0:01:38.4]} 17... dxe5 {[%clk 0:02:32.7]} 18. fxe5 {[%clk
0:01:39.3]} 18... bxc4 {[%clk 0:02:31.4]} 19. dxc4 {[%clk 0:01:32.4]} 19... d3
{[%clk 0:02:31.7]} 20. Qd2 {[%clk 0:01:23.7]} 20... Bb7 {[%clk 0:02:28.1]} 21.
Nf6+ {[%clk 0:01:16.9]} 21... Bxf6 {[%clk 0:02:25.5]} 22. exf6 {[%clk
0:01:17.8]} 22... Qxf6 {[%clk 0:02:23.9]} 23. Qxd3 {[%clk 0:01:08.5]} 23... Bxf3
{[%clk 0:02:22.5]} 24. Bxf3 {[%clk 0:01:05.3]} 24... Rfd8 {[%clk 0:02:20]} 25.
Qa3 {[%clk 0:01:01.3]} 25... Qxb2 {[%clk 0:02:18.6]} 26. Qxa6 {[%clk 0:00:55.6]}
26... Qd4+ {[%clk 0:02:18.3]} 27. Kh1 {[%clk 0:00:54]} 27... Rb2 {[%clk
0:02:16.8]} 28. Qa3 {[%clk 0:00:18.7]} 28... Qd2 {[%clk 0:02:14.8]} 0-1

[Event "*** SCC Grand Prix: Titled Tuesday Blitz"]
[Site "Chess.com"]
[Date "2020.10.13"]
[Round "1"]
[White "PSvidler"]
[Black "r31415"]
[Result "1-0"]
[WhiteElo "2900"]
[BlackElo "2463"]
[TimeControl "180+1"]
[EndTime "10:04:49 PDT"]
[Termination "PSvidler won by resignation"]

1. e4 {[%clk 0:02:56.7]} 1... e5 {[%clk 0:02:59.2]} 2. Nf3 {[%clk 0:02:55.2]}
2... Nc6 {[%clk 0:02:59.7]} 3. Bb5 {[%clk 0:02:54.6]} 3... Nf6 {[%clk 0:03:00]}
4. d3 {[%clk 0:02:54.2]} 4... Bc5 {[%clk 0:02:58]} 5. c3 {[%clk 0:02:54]} 5...
d5 {[%clk 0:02:58.4]} 6. exd5 {[%clk 0:02:49]} 6... Qxd5 {[%clk 0:02:57.5]} 7.
Bc4 {[%clk 0:02:48.7]} 7... Qd6 {[%clk 0:02:57.6]} 8. Qe2 {[%clk 0:02:48.6]}
8... O-O {[%clk 0:02:56.6]} 9. Nbd2 {[%clk 0:02:48.4]} 9... Be6 {[%clk
0:02:42.6]} 10. b4 {[%clk 0:02:38.6]} 10... Bb6 {[%clk 0:02:33.6]} 11. Ng5
{[%clk 0:02:38.6]} 11... Bg4 {[%clk 0:02:18]} 12. f3 {[%clk 0:02:33.9]} 12...
Bf5 {[%clk 0:02:04.1]} 13. a4 {[%clk 0:02:22.8]} 13... a6 {[%clk 0:02:00.7]} 14.
g4 {[%clk 0:02:09.7]} 14... Bg6 {[%clk 0:01:57.7]} 15. h4 {[%clk 0:02:05.1]}
15... h6 {[%clk 0:01:57.7]} 16. Nge4 {[%clk 0:02:04.1]} 16... Qe7 {[%clk
0:01:51.2]} 17. h5 {[%clk 0:01:54.4]} 17... Bh7 {[%clk 0:01:51.2]} 18. g5 {[%clk
0:01:52.5]} 18... hxg5 {[%clk 0:01:47.2]} 19. Nxg5 {[%clk 0:01:52.3]} 19... Rad8
{[%clk 0:01:47.8]} 20. Nde4 {[%clk 0:01:51.1]} 20... Nd5 {[%clk 0:01:45.8]} 21.
h6 {[%clk 0:01:40.3]} 21... Bg6 {[%clk 0:01:37.8]} 22. Qh2 {[%clk 0:01:34.7]}
22... f6 {[%clk 0:00:56.7]} 23. hxg7 {[%clk 0:01:34.3]} 23... Qxg7 {[%clk
0:00:56.6]} 24. Ne6 {[%clk 0:01:34.2]} 24... Qh7 {[%clk 0:00:52.2]} 25. Qxh7+
{[%clk 0:01:33.6]} 25... Bxh7 {[%clk 0:00:52.3]} 26. Nxd8 {[%clk 0:01:30.7]} 1-0

[Event "*** SCC Grand Prix: Titled Tuesday Blitz"]
[Site "Chess.com"]
[Date "2020.10.13"]
[Round "1"]
[White "mfwagnerpeixoto"]
[Black "davidkalashian"]
[Result "0-1"]
[WhiteElo "2232"]
[BlackElo "2569"]
[TimeControl "180+1"]
[EndTime "10:04:49 PDT"]
[Termination "davidkalashian won by resignation"]

1. d4 {[%clk 0:02:58.4]} 1... Nf6 {[%clk 0:02:59.5]} 2. c4 {[%clk 0:02:57.9]}
2... e6 {[%clk 0:02:59.4]} 3. Nf3 {[%clk 0:02:57.6]} 3... b6 {[%clk 0:02:59]} 4.
a3 {[%clk 0:02:55.1]} 4... Ba6 {[%clk 0:02:58.9]} 5. Nbd2 {[%clk 0:02:52]} 5...
c5 {[%clk 0:02:55.2]} 6. e3 {[%clk 0:02:49.1]} 6... Bb7 {[%clk 0:02:54.6]} 7.
Be2 {[%clk 0:02:45.7]} 7... Be7 {[%clk 0:02:54]} 8. O-O {[%clk 0:02:46.3]} 8...
O-O {[%clk 0:02:54.4]} 9. b3 {[%clk 0:02:46.7]} 9... d5 {[%clk 0:02:54.4]} 10.
Bb2 {[%clk 0:02:46.9]} 10... Nc6 {[%clk 0:02:52.3]} 11. Qc2 {[%clk 0:02:40.3]}
11... Rc8 {[%clk 0:02:50.7]} 12. Rac1 {[%clk 0:02:38.4]} 12... cxd4 {[%clk
0:02:48.4]} 13. exd4 {[%clk 0:02:39.3]} 13... dxc4 {[%clk 0:02:47.2]} 14. bxc4
{[%clk 0:02:37.9]} 14... Na5 {[%clk 0:02:46.2]} 15. Qb1 {[%clk 0:02:32.8]} 15...
Qc7 {[%clk 0:02:40.7]} 16. c5 {[%clk 0:02:23.7]} 16... Bd5 {[%clk 0:02:32]} 17.
cxb6 {[%clk 0:02:02.3]} 17... Qxb6 {[%clk 0:02:32.9]} 18. Ne5 {[%clk 0:01:45.7]}
18... Rb8 {[%clk 0:02:26.8]} 19. Bc3 {[%clk 0:01:37.8]} 19... Bxa3 {[%clk
0:02:19.8]} 20. Qxb6 {[%clk 0:01:36.4]} 20... axb6 {[%clk 0:02:17.8]} 21. Ra1
{[%clk 0:01:30.7]} 21... Bd6 {[%clk 0:02:17.2]} 22. Rfb1 {[%clk 0:01:21.2]}
22... h6 {[%clk 0:02:03.3]} 23. f3 {[%clk 0:01:15.6]} 23... Rfc8 {[%clk
0:02:01.2]} 24. Bxa5 {[%clk 0:01:07.6]} 24... bxa5 {[%clk 0:02:00.1]} 25. Rxb8
{[%clk 0:01:03.3]} 25... Rxb8 {[%clk 0:01:59.3]} 26. Ndc4 {[%clk 0:01:03.4]}
26... Bb4 {[%clk 0:01:53.9]} 27. Nxa5 {[%clk 0:00:52.3]} 27... Bc3 {[%clk
0:01:53]} 28. Ra3 {[%clk 0:00:41.3]} 28... Bxd4+ {[%clk 0:01:51.2]} 0-1

[Event "*** SCC Grand Prix: Titled Tuesday Blitz"]
[Site "Chess.com"]
[Date "2020.10.13"]
[Round "1"]
[White "Korchmar_Vasiliy"]
[Black "pavelalexandru07"]
[Result "1-0"]
[WhiteElo "2572"]
[BlackElo "2238"]
[TimeControl "180+1"]
[EndTime "10:04:55 PDT"]
[Termination "Korchmar_Vasiliy won by resignation"]

1. d4 {[%clk 0:03:00.9]} 1... Nf6 {[%clk 0:02:25.5]} 2. Nf3 {[%clk 0:02:59.9]}
2... d5 {[%clk 0:02:24.8]} 3. Bf4 {[%clk 0:03:00]} 3... e6 {[%clk 0:02:23.8]} 4.
e3 {[%clk 0:03:00.1]} 4... Bd6 {[%clk 0:02:23.7]} 5. Bg3 {[%clk 0:03:00.3]} 5...
a6 {[%clk 0:02:19]} 6. Nbd2 {[%clk 0:02:57.5]} 6... Nbd7 {[%clk 0:02:17.1]} 7.
Bd3 {[%clk 0:02:52.3]} 7... O-O {[%clk 0:02:16.1]} 8. Ne5 {[%clk 0:02:51.3]}
8... h6 {[%clk 0:01:47.8]} 9. c3 {[%clk 0:02:49.7]} 9... Qe7 {[%clk 0:01:45.4]}
10. f4 {[%clk 0:02:47.2]} 10... c5 {[%clk 0:01:44.2]} 11. Bh4 {[%clk 0:02:45.1]}
11... b5 {[%clk 0:01:20.7]} 12. g4 {[%clk 0:02:42.9]} 12... Bb7 {[%clk
0:00:36.7]} 13. Qf3 {[%clk 0:02:40.7]} 13... Qe8 {[%clk 0:00:29.2]} 14. g5
{[%clk 0:02:37.5]} 14... Ne4 {[%clk 0:00:28.9]} 15. gxh6 {[%clk 0:02:32]} 15...
Nxd2 {[%clk 0:00:22.2]} 16. Kxd2 {[%clk 0:02:32.9]} 16... g6 {[%clk 0:00:11.4]}
17. Rhg1 {[%clk 0:02:11]} 17... Bxe5 {[%clk 0:00:06.9]} 18. fxe5 {[%clk
0:02:11.9]} 18... Kh7 {[%clk 0:00:06.6]} 19. Bf6 {[%clk 0:02:05.8]} 19... b4
{[%clk 0:00:06.5]} 20. h4 {[%clk 0:02:05.8]} 20... bxc3+ {[%clk 0:00:06.1]} 21.
bxc3 {[%clk 0:02:06.7]} 21... Rb8 {[%clk 0:00:06.7]} 22. h5 {[%clk 0:02:06.7]}
22... Bc6 {[%clk 0:00:05.6]} 23. hxg6+ {[%clk 0:02:05.9]} 23... fxg6 {[%clk
0:00:05.6]} 24. Bxg6+ {[%clk 0:02:06.8]} 24... Qxg6 {[%clk 0:00:06.2]} 25. Rxg6
{[%clk 0:02:07.3]} 25... Kxg6 {[%clk 0:00:07.1]} 26. Qg4+ {[%clk 0:02:05.9]} 1-0

[Event "*** SCC Grand Prix: Titled Tuesday Blitz"]
[Site "Chess.com"]
[Date "2020.10.13"]
[Round "1"]
[White "kleopl"]
[Black "Msb2"]
[Result "0-1"]
[WhiteElo "2483"]
[BlackElo "2942"]
[TimeControl "180+1"]
[EndTime "10:04:56 PDT"]
[Termination "Msb2 won by resignation"]

1. c4 {[%clk 0:02:32.9]} 1... e5 {[%clk 0:02:57.4]} 2. Nc3 {[%clk 0:02:32.2]}
2... Bb4 {[%clk 0:02:57.6]} 3. Nd5 {[%clk 0:02:31.8]} 3... a5 {[%clk 0:02:58.2]}
4. a3 {[%clk 0:02:30.5]} 4... Bc5 {[%clk 0:02:58.6]} 5. e3 {[%clk 0:02:30.7]}
5... c6 {[%clk 0:02:58]} 6. Nc3 {[%clk 0:02:30.4]} 6... d6 {[%clk 0:02:57.8]} 7.
d4 {[%clk 0:02:29.9]} 7... Ba7 {[%clk 0:02:58.3]} 8. Nf3 {[%clk 0:02:29.2]} 8...
Nd7 {[%clk 0:02:57.7]} 9. Be2 {[%clk 0:02:27.3]} 9... Ngf6 {[%clk 0:02:56.4]}
10. O-O {[%clk 0:02:26.5]} 10... O-O {[%clk 0:02:57]} 11. b3 {[%clk 0:02:25.6]}
11... Bb8 {[%clk 0:02:56.8]} 12. Bb2 {[%clk 0:02:25]} 12... e4 {[%clk
0:02:57.3]} 13. Nd2 {[%clk 0:02:24.4]} 13... d5 {[%clk 0:02:58]} 14. Re1 {[%clk
0:02:18.4]} 14... Re8 {[%clk 0:02:46.8]} 15. b4 {[%clk 0:02:12.5]} 15... Nf8
{[%clk 0:02:46.6]} 16. g3 {[%clk 0:02:09.6]} 16... Ne6 {[%clk 0:02:43.4]} 17.
Qb3 {[%clk 0:02:05.8]} 17... Ng5 {[%clk 0:02:43.1]} 18. b5 {[%clk 0:01:58.1]}
18... Nh3+ {[%clk 0:02:41.3]} 19. Kg2 {[%clk 0:01:58.4]} 19... h5 {[%clk
0:02:33]} 20. bxc6 {[%clk 0:01:51]} 20... bxc6 {[%clk 0:02:33.9]} 21. cxd5
{[%clk 0:01:51]} 21... cxd5 {[%clk 0:02:34.8]} 22. Na4 {[%clk 0:01:42.5]} 22...
Bc7 {[%clk 0:02:17.9]} 23. Nc5 {[%clk 0:01:41]} 23... Rb8 {[%clk 0:02:17]} 24.
Qc3 {[%clk 0:01:39.6]} 24... Ng4 {[%clk 0:02:09.2]} 25. Rf1 {[%clk 0:01:36.5]}
25... Qf6 {[%clk 0:02:06]} 26. Rab1 {[%clk 0:01:27.6]} 26... Ngxf2 {[%clk
0:01:56.3]} 27. Bxh5 {[%clk 0:01:23.1]} 27... Qg5 {[%clk 0:01:54.2]} 28. Be2
{[%clk 0:01:07.9]} 28... Ng4 {[%clk 0:01:54.5]} 29. Bxg4 {[%clk 0:00:57.9]}
29... Qxg4 {[%clk 0:01:55.4]} 30. Rbe1 {[%clk 0:00:54.9]} 30... Ng5 {[%clk
0:01:53.3]} 31. Re2 {[%clk 0:00:41.7]} 31... Qxe2+ {[%clk 0:01:50.5]} 0-1

[Event "*** SCC Grand Prix: Titled Tuesday Blitz"]
[Site "Chess.com"]
[Date "2020.10.13"]
[Round "1"]
[White "semchik73"]
[Black "Arjun2002"]
[Result "0-1"]
[WhiteElo "2333"]
[BlackElo "2670"]
[TimeControl "180+1"]
[EndTime "10:05:11 PDT"]
[Termination "Arjun2002 won by resignation"]

1. Nf3 {[%clk 0:02:58.5]} 1... d5 {[%clk 0:02:57.5]} 2. c4 {[%clk 0:02:58.7]}
2... c6 {[%clk 0:02:56.4]} 3. e3 {[%clk 0:02:58.8]} 3... Nf6 {[%clk 0:02:55.9]}
4. Nc3 {[%clk 0:02:59.2]} 4... e6 {[%clk 0:02:55.9]} 5. d4 {[%clk 0:02:59.3]}
5... Nbd7 {[%clk 0:02:54.9]} 6. Bd3 {[%clk 0:02:59.7]} 6... dxc4 {[%clk
0:02:54.5]} 7. Bxc4 {[%clk 0:02:59.3]} 7... b5 {[%clk 0:02:55.1]} 8. Bd3 {[%clk
0:02:59.5]} 8... Bb7 {[%clk 0:02:55.6]} 9. O-O {[%clk 0:02:59.1]} 9... a6 {[%clk
0:02:55.2]} 10. Qe2 {[%clk 0:02:50.4]} 10... c5 {[%clk 0:02:54.8]} 11. Rd1
{[%clk 0:02:49.1]} 11... Rc8 {[%clk 0:02:39.5]} 12. dxc5 {[%clk 0:02:39.6]}
12... Bxc5 {[%clk 0:02:39.2]} 13. e4 {[%clk 0:02:17.5]} 13... h6 {[%clk
0:02:15.7]} 14. Be3 {[%clk 0:01:56.2]} 14... Qe7 {[%clk 0:02:11.5]} 15. Bxc5
{[%clk 0:01:54.6]} 15... Nxc5 {[%clk 0:02:10.8]} 16. e5 {[%clk 0:01:43.8]} 16...
Nd5 {[%clk 0:02:07.4]} 17. Nxd5 {[%clk 0:01:28.2]} 17... Bxd5 {[%clk 0:02:07.1]}
18. Rac1 {[%clk 0:01:16.8]} 18... O-O {[%clk 0:02:04.7]} 19. Bb1 {[%clk
0:01:12.9]} 19... Na4 {[%clk 0:01:54.7]} 20. Qd3 {[%clk 0:00:49.6]} 20... g6
{[%clk 0:01:52.9]} 21. b3 {[%clk 0:00:45.6]} 21... Nb2 {[%clk 0:01:50.8]} 22.
Qe3 {[%clk 0:00:22.6]} 22... Nxd1 {[%clk 0:01:46.5]} 23. Qxh6 {[%clk 0:00:17.3]}
23... Rxc1 {[%clk 0:01:44.1]} 24. Qxc1 {[%clk 0:00:13.5]} 24... Bxf3 {[%clk
0:01:43.7]} 0-1

[Event "*** SCC Grand Prix: Titled Tuesday Blitz"]
[Site "Chess.com"]
[Date "2020.10.13"]
[Round "1"]
[White "GigaQuparadze"]
[Black "Mr_Sinigami"]
[Result "1-0"]
[WhiteElo "2966"]
[BlackElo "2486"]
[TimeControl "180+1"]
[EndTime "10:05:13 PDT"]
[Termination "GigaQuparadze won on time"]

1. e4 {[%clk 0:03:00.9]} 1... c5 {[%clk 0:02:51.4]} 2. Nf3 {[%clk 0:03:00.4]}
2... e6 {[%clk 0:02:51.5]} 3. d4 {[%clk 0:03:00.1]} 3... cxd4 {[%clk 0:02:50.7]}
4. Nxd4 {[%clk 0:03:01]} 4... a6 {[%clk 0:02:49.8]} 5. Nc3 {[%clk 0:03:00.3]}
5... Qc7 {[%clk 0:02:48.8]} 6. Be2 {[%clk 0:02:59]} 6... Nf6 {[%clk 0:02:48.5]}
7. O-O {[%clk 0:02:58.7]} 7... Nc6 {[%clk 0:02:46.5]} 8. Be3 {[%clk 0:02:53.1]}
8... Bb4 {[%clk 0:02:27.9]} 9. Na4 {[%clk 0:02:48]} 9... b5 {[%clk 0:02:17.5]}
10. Nb6 {[%clk 0:02:43.4]} 10... Rb8 {[%clk 0:01:52.7]} 11. Nxc8 {[%clk
0:02:41.8]} 11... Rxc8 {[%clk 0:01:53.6]} 12. a4 {[%clk 0:02:29.8]} 12... Nxe4
{[%clk 0:01:31.4]} 13. axb5 {[%clk 0:02:27.7]} 13... axb5 {[%clk 0:01:26.6]} 14.
Nxb5 {[%clk 0:02:20.5]} 14... Qb8 {[%clk 0:01:16.6]} 15. Na7 {[%clk 0:02:13.5]}
15... Nxa7 {[%clk 0:01:13.3]} 16. Bxa7 {[%clk 0:02:14.4]} 16... Qe5 {[%clk
0:01:02.8]} 17. Bd4 {[%clk 0:02:10.9]} 17... Qg5 {[%clk 0:00:48.7]} 18. Ba6
{[%clk 0:02:07.5]} 18... Rd8 {[%clk 0:00:24.3]} 19. Bb6 {[%clk 0:02:04.8]} 19...
O-O {[%clk 0:00:17.2]} 20. Bxd8 {[%clk 0:02:01.8]} 20... Rxd8 {[%clk 0:00:18.1]}
21. Qd4 {[%clk 0:02:00.5]} 21... Nxf2 {[%clk 0:00:09.2]} 22. Qxb4 {[%clk
0:01:52.7]} 22... Nh3+ {[%clk 0:00:08.9]} 23. Kh1 {[%clk 0:01:51.9]} 1-0